bitfinex/quotes_ETHUSD_20240817
["timestamp","ask_amount","ask_price","bid_price","bid_amount"]
[1723864854377,3.84063,2603.8,2603.4,7.32]
[1723864854704,2.3665,2603.7,2603.4,7.32]
[1723864855021,6.30757243,2603.7,2603.4,7.32]
[1723864855523,2.46688243,2603.7,2603.4,7.32]
[1723864856680,1.0,2603.5,2603.4,7.32]
[1723864856881,1.0,2603.5,2603.2,3.84141]
[1723864857123,1.1002601,2603.5,2603.2,3.84141]
[1723864857292,1.0,2603.5,2603.2,3.84141]
[1723864858276,0.10036683,2603.4,2603.2,3.84141]
[1723864858617,1.0,2603.5,2603.2,3.84141]
[1723864858826,1.0,2603.5,2603.3,3.84124]
[1723864858992,0.10036683,2603.4,2603.3,3.84119]
[1723864859326,0.10036683,2603.4,2603.3,7.68237]
[1723864859478,1.0,2603.5,2603.3,7.68237]
[1723864859677,1.0,2603.5,2603.4,3.84113]
[1723864860434,1.10037297,2603.5,2603.4,3.84113]
[1723864862143,1.10037297,2603.5,2603.2,4.525538]
[1723864862144,1.10037297,2603.5,2603.2,8.366818]
[1723864862496,1.0,2603.5,2603.2,8.366818]
[1723864862899,1.0,2603.5,2603.3,3.84124]
[1723864863806,1.0,2603.5,2603.0,3.84158]
[1723864864000,6.2077,2603.4,2602.9,7.32]
[1723864864197,6.99847,2603.4,2602.9,7.32]
[1723864864465,0.1003764,2603.3,2602.9,7.32]
[1723864864828,3.9416764,2603.3,2602.9,7.32]
[1723864865413,0.1003764,2603.3,2602.9,7.32]
[1723864868015,0.1003764,2603.3,2602.9,11.16176]
[1723864869018,0.1003764,2603.3,2602.9,7.32]
[1723864869706,0.1003764,2603.3,2602.9,3.84184]
[1723864870802,0.1003764,2603.3,2602.7,2.4417]
[1723864871005,0.1003764,2603.3,2602.7,5.4417]
[1723864871232,1.0,2603.5,2603.1,3.84149]
[1723864871619,0.10039758,2603.4,2603.1,3.84149]
[1723864872355,0.10039758,2603.4,2602.9,3.84181]
[1723864872356,0.10039758,2603.4,2602.9,3.84178]
[1723864873307,3.94154758,2603.4,2602.9,3.84178]
[1723864873503,5.13690434,2603.4,2602.9,3.84178]
[1723864878456,8.97813434,2603.4,2602.9,3.84178]
[1723864878615,8.97813434,2603.4,2602.7,9.28376]
[1723864878616,8.97813434,2603.4,2602.7,13.12578]
[1723864879019,8.97813434,2603.4,2602.8,3.842]
[1723864879563,5.13690434,2603.4,2602.8,3.842]
[1723864879731,5.13690434,2603.4,2602.9,3.84186]
[1723864880065,3.94154758,2603.4,2602.9,3.84186]
[1723864880364,7.78280758,2603.4,2602.9,3.84186]
[1723864880559,7.78280758,2603.4,2603.0,3.84167]
[1723864880560,0.10039758,2603.4,2603.0,3.84167]
[1723864880863,0.10039758,2603.4,2603.0,3.84168]
[1723864881448,0.10039758,2603.4,2602.8,3.8419]
[1723864881449,3.94152758,2603.4,2602.8,3.8419]
[1723864881633,0.10039758,2603.4,2603.0,3.84171]
[1723864884925,0.10039758,2603.4,2603.1,3.84143]
[1723864885127,0.10039758,2603.4,2603.1,7.051444]
[1723864887871,0.10039758,2603.4,2603.3,3.84127]
[1723864888081,0.10039758,2603.4,2603.3,7.68254]
[1723864888375,0.10039758,2603.4,2603.3,10.00674]
[1723864888865,1.0,2603.5,2603.4,7.68226]
[1723864889065,1.0,2603.5,2603.4,8.574318]
[1723864889475,1.0,2603.5,2603.4,11.574318]
[1723864892348,1.0,2603.5,2603.4,7.733188]
[1723864892672,1.0,2603.5,2603.4,3.0]
[1723864893383,1.0,2603.5,2603.2,3.8413]
[1723864893384,1.0,2603.5,2603.3,3.0]
[1723864893678,1.10012988,2603.5,2603.3,3.0]
[1723864893836,1.10012988,2603.5,2603.3,3.7609614]
[1723864894534,1.10012988,2603.5,2603.3,7.6021514]
[1723864896378,1.10012988,2603.5,2603.3,3.7609614]
[1723864896670,1.10012988,2603.5,2603.4,3.84113]
[1723864896874,1.10012988,2603.5,2603.4,6.84113]
[1723864897378,1.10012988,2603.5,2603.3,0.7609614]
[1723864897577,1.10012988,2603.5,2603.3,4.6021814]
[1723864898405,1.10012988,2603.5,2603.4,3.84113]
[1723864898704,1.10012988,2603.5,2603.4,10.85080814]
[1723864899303,1.0,2603.5,2603.4,10.85080814]
[1723864899763,1.1000677,2603.5,2603.4,10.85080814]
[1723864899967,1.1000677,2603.5,2603.4,12.18692221]
[1723864900211,1.0,2603.5,2603.4,17.19105309]
[1723864901410,1.0,2603.5,2603.4,19.02805149]
[1723864901711,1.0,2603.5,2603.4,17.69193814]
[1723864903373,1.0,2603.5,2603.4,13.85080814]
[1723864904614,1.0,2603.5,2603.4,11.52660814]
[1723864905110,1.1000677,2603.5,2603.4,7.68547814]
[1723864905418,3.5452677,2603.5,2603.1,3.84155]
[1723864906390,3.5452677,2603.5,2603.2,3.84141]
[1723864906720,3.5452677,2603.5,2603.0,9.331813]
[1723864907034,3.5452677,2603.5,2603.0,3.8416]
[1723864907510,7.3863277,2603.5,2603.0,3.8416]
[1723864907828,7.3863277,2603.5,2602.9,11.16184]
[1723864908030,3.84121,2603.4,2602.9,7.32]
[1723864908380,3.84128,2603.3,2602.9,7.32]
[1723864908586,2.4802,2603.2,2602.9,7.32]
[1723864908921,0.10018224,2603.1,2602.9,7.32]
[1723864910018,0.10018224,2603.1,2602.9,11.16185]
[1723864910579,0.10006175,2603.0,2602.9,11.16185]
[1723864910791,7.32121,2603.5,2602.9,11.16185]
[1723864910992,0.100231,2603.4,2602.9,11.16185]
[1723864911535,0.100231,2603.4,2602.9,3.84185]
[1723864913322,3.941361,2603.4,2602.9,3.84185]
[1723864915392,5.1376081,2603.4,2602.9,3.84185]
[1723864920647,1.2964781,2603.4,2603.0,3.84168]
[1723864920865,0.100231,2603.4,2603.0,3.84168]
[1723864921315,0.100231,2603.4,2602.9,3.84185]
[1723864923845,0.100231,2603.4,2603.0,3.8417]
[1723864926621,0.100231,2603.4,2603.2,3.84141]
[1723864927844,0.100231,2603.4,2603.2,3.84134]
[1723864930365,0.100231,2603.4,2603.3,3.84127]
[1723864930660,1.0,2603.9,2603.6,3.84081]
[1723864931456,1.0,2603.9,2603.6,7.68156]
[1723864931761,1.0,2603.9,2603.6,3.84075]
[1723864932256,1.0,2603.9,2603.7,3.84057]
[1723864932563,1.0,2603.9,2603.8,0.67035763]
[1723864933449,1.0,2603.9,2603.8,4.51089763]
[1723864938374,1.09035531,2603.9,2603.8,4.51089763]
[1723864939630,1.09035531,2603.9,2603.8,8.35143763]
[1723864942075,1.09035531,2603.9,2603.8,4.51089763]
[1723864942578,1.09035531,2603.9,2603.6,6.12413]
[1723864942579,1.09035531,2603.9,2603.6,3.84073]
[1723864942879,1.09035531,2603.9,2603.7,6.84061]
[1723864943234,1.0,2603.9,2603.7,3.0]
[1723864943444,0.08726979,2603.8,2603.7,3.0]
[1723864943661,2.2567,2603.7,2603.3,3.84123]
[1723864943851,0.08741553,2603.6,2603.3,3.84123]
[1723864944054,3.5847,2603.7,2603.3,3.84123]
[1723864945038,2.2567,2603.7,2603.3,3.84119]
[1723864945239,2.2567,2603.7,2603.4,3.84111]
[1723864946333,0.08739429,2603.6,2603.4,3.84111]
[1723864946776,2.2567,2603.7,2603.4,3.84111]
[1723864947076,0.08739429,2603.6,2603.4,3.84111]
[1723864947538,2.2567,2603.7,2603.4,3.84111]
[1723864947933,0.08739429,2603.6,2603.4,3.84111]
[1723864948971,0.08739429,2603.6,2603.2,3.84128]
[1723864949157,0.08739429,2603.6,2603.3,6.84125]
[1723864949345,2.2567,2603.7,2603.3,6.84125]
[1723864949553,0.08734302,2603.5,2603.3,6.84125]
[1723864949751,2.2567,2603.7,2603.3,10.68244]
[1723864949952,0.08729174,2603.4,2603.3,6.84119]
[1723864950149,2.2567,2603.7,2603.3,10.68238]
[1723864950552,0.08739429,2603.6,2603.3,10.68238]
[1723864950751,0.08739429,2603.6,2603.3,6.84119]
[1723864951248,0.08739429,2603.6,2603.3,10.68238]
[1723864951467,0.08739429,2603.6,2603.3,10.68237]
[1723864952081,0.08739429,2603.6,2603.3,10.68236]
[1723864955654,0.08739429,2603.6,2603.3,3.0]
[1723864955883,4.07531943,2603.6,2603.0,3.84171]
[1723864956042,10.11738032,2603.5,2602.9,11.16178]
[1723864956238,6.68385226,2603.5,2602.9,11.16178]
[1723864956440,6.68385226,2603.5,2602.9,15.00356]
[1723864956775,6.68385226,2603.5,2602.9,11.16178]
[1723864957137,6.68385226,2603.5,2603.0,3.84164]
[1723864957335,6.27632032,2603.5,2603.0,3.84164]
[1723864958842,6.27632032,2603.5,2602.9,7.32]
[1723864959038,6.27632032,2603.5,2602.9,3.84183]
[1723864959238,6.97395235,2603.5,2602.9,3.84183]
[1723864959489,6.97395235,2603.5,2602.9,7.68361]
[1723864959641,6.97395235,2603.5,2602.9,3.84178]
[1723864960385,10.81501235,2603.5,2602.9,3.84178]
[1723864960589,6.97395235,2603.5,2602.9,3.84178]
[1723864961884,6.97395235,2603.5,2603.0,3.84171]
[1723864962226,6.27632032,2603.5,2603.0,3.84171]
[1723864965478,3.92842032,2603.5,2603.0,3.84171]
[1723864965680,0.08737032,2603.5,2603.1,6.23726]
[1723864965885,6.18867,2603.7,2603.2,3.84134]
[1723864966103,0.08429899,2603.4,2603.2,3.84134]
[1723864966408,6.18867,2603.7,2603.2,3.84134]
[1723864966574,0.08424861,2603.3,2603.2,3.84134]
[1723864966770,7.88834,2603.9,2603.1,2.3958]
[1723864966970,7.88834,2603.9,2603.3,3.84113]
[1723864967965,1.328,2603.8,2603.4,3.84104]
[1723864968366,0.08156821,2603.7,2603.4,3.84104]
[1723864968560,1.328,2603.8,2603.4,3.84104]
[1723864968802,0.08153781,2603.6,2603.4,3.84104]
[1723864969010,1.328,2603.8,2603.3,7.68232]
[1723864969175,0.08148653,2603.5,2603.3,8.329971]
[1723864969358,1.328,2603.8,2603.3,7.68232]
[1723864969563,0.08143525,2603.4,2603.3,7.68232]
[1723864970095,1.328,2603.8,2603.3,7.68232]
[1723864970274,0.08143525,2603.4,2603.3,3.84113]
[1723864970463,1.328,2603.8,2603.3,7.68232]
[1723864970664,0.08159904,2603.7,2603.3,8.714115]
[1723864970889,1.328,2603.8,2603.3,8.714115]
[1723864971079,0.08154777,2603.6,2603.3,8.714115]
[1723864971281,1.328,2603.8,2603.3,8.714115]
[1723864971494,0.08159904,2603.7,2603.3,8.714115]
[1723864971692,1.328,2603.8,2603.4,4.63147163]
[1723864972162,0.08086904,2603.7,2603.4,4.63147163]
[1723864972509,1.328,2603.8,2603.4,4.63147163]
[1723864972510,0.08081777,2603.6,2603.4,4.63147163]
[1723864972875,1.328,2603.8,2603.4,4.63147163]
[1723864973109,0.08086904,2603.7,2603.4,4.63147163]
[1723864973259,1.328,2603.8,2603.4,4.63147163]
[1723864973473,0.08087992,2603.7,2603.4,4.63147163]
[1723864973818,1.328,2603.8,2603.4,4.63147163]
[1723864973995,0.08079295,2603.6,2603.4,4.63147163]
[1723864974189,1.328,2603.8,2603.4,4.63147163]
[1723864974394,0.0807665,2603.5,2603.4,4.63147163]
[1723864974718,0.08077737,2603.5,2603.4,4.63147163]
[1723864975013,1.328,2603.8,2603.4,4.63147163]
[1723864975204,0.08074168,2603.5,2603.4,4.63147163]
[1723864975372,1.328,2603.8,2603.4,4.63147163]
[1723864975578,0.07883983,2603.5,2603.4,3.84112]
[1723864975778,1.328,2603.8,2603.4,3.84112]
[1723864976013,0.07883983,2603.5,2603.4,3.84112]
[1723864976220,1.328,2603.8,2603.3,7.68231]
[1723864976529,1.328,2603.8,2603.4,0.384113]
[1723864976825,0.07891756,2603.7,2603.3,3.84113]
[1723864977183,1.328,2603.8,2603.3,7.68233]
[1723864977383,0.07886629,2603.6,2603.3,3.84113]
[1723864977700,0.07881501,2603.5,2603.3,4.84897]
[1723864977880,1.328,2603.8,2603.3,3.84113]
[1723864978082,0.07891756,2603.7,2603.3,3.84113]
[1723864978278,1.328,2603.8,2603.3,3.84113]
[1723864978506,0.07891756,2603.7,2603.3,3.84113]
[1723864979020,1.328,2603.8,2603.3,3.84113]
[1723864979317,0.07891756,2603.7,2603.3,7.68232]
[1723864979519,0.07891756,2603.7,2603.3,8.690132]
[1723864979733,1.328,2603.8,2603.4,2.3261]
[1723864980024,0.07886629,2603.6,2603.4,2.3261]
[1723864980192,1.328,2603.8,2603.4,2.3261]
[1723864980519,1.0,2604.0,2603.5,3.84085]
[1723864980725,0.07889074,2603.7,2603.5,3.84085]
[1723864980880,1.0,2604.0,2603.6,3.84069]
[1723864981094,0.07903369,2603.9,2603.6,3.84069]
[1723864982295,0.07903369,2603.9,2603.6,4.841454]
[1723864983039,0.07903369,2603.9,2603.6,1.000764]
[1723864983631,1.40703369,2603.9,2603.6,1.000764]
[1723864983798,1.40703369,2603.9,2603.3,3.84121]
[1723864983799,5.24751369,2603.9,2603.3,3.84117]
[1723864984154,5.24751369,2603.9,2603.3,7.68236]
[1723864984440,5.24751369,2603.9,2603.4,3.84112]
[1723864985838,5.24751369,2603.9,2603.3,3.84117]
[1723864986010,5.24750369,2603.9,2603.3,3.84117]
[1723864986217,5.24750369,2603.9,2603.3,7.68235]
[1723864986545,5.24750369,2603.9,2603.3,8.683195]
[1723864987136,5.24750369,2603.9,2603.3,8.683205]
[1723864990537,5.24750369,2603.9,2603.4,3.84111]
[1723864991518,5.24750369,2603.9,2603.3,4.842015]
[1723864991705,5.24750369,2603.9,2603.3,8.683205]
[1723864992407,5.24750369,2603.9,2603.4,3.84112]
[1723864997261,5.24750369,2603.9,2603.3,4.842015]
[1723864997542,5.24750369,2603.9,2603.3,8.683205]
[1723864998317,5.24750369,2603.9,2603.3,4.842015]
[1723864998318,9.08797369,2603.9,2603.3,4.842015]
[1723864998859,5.24750369,2603.9,2603.3,4.842015]
[1723864999022,5.24750369,2603.9,2603.3,8.683205]
[1723864999858,5.24750369,2603.9,2603.3,8.683195]
[1723865000428,5.24750369,2603.9,2603.3,8.683175]
[1723865000760,5.24750369,2603.9,2603.3,4.842005]
[1723865001271,9.08801369,2603.9,2603.3,4.842005]
[1723865001431,3.84055,2603.8,2603.3,4.842005]
[1723865001771,0.07894296,2603.7,2603.3,8.683185]
[1723865002289,5.16847,2603.9,2603.4,3.84109]
[1723865002443,0.07889169,2603.6,2603.4,4.90197163]
[1723865002636,5.16847,2603.9,2603.4,3.84109]
[1723865002837,0.07884041,2603.5,2603.4,3.84109]
[1723865003364,5.16847,2603.9,2603.4,3.84109]
[1723865003595,0.07884041,2603.5,2603.4,3.84109]
[1723865003877,1.328,2603.9,2603.4,3.84109]
[1723865004030,0.07884041,2603.5,2603.4,3.84109]
[1723865004368,0.07884041,2603.5,2603.4,4.841925]
[1723865004581,1.328,2603.9,2603.4,4.841925]
[1723865004728,0.07884041,2603.5,2603.4,4.841925]
[1723865004930,1.328,2603.9,2603.4,4.841925]
[1723865005226,0.07884041,2603.5,2603.4,3.84109]
[1723865005426,1.328,2603.9,2603.4,3.84109]
[1723865005626,0.07884041,2603.5,2603.4,3.84109]
[1723865005864,1.328,2603.9,2603.4,3.84109]
[1723865006367,0.07899423,2603.8,2603.4,3.84109]
[1723865009402,0.07899423,2603.8,2603.5,3.84096]
[1723865009600,0.07899423,2603.8,2603.7,3.84068]
[1723865009757,1.0,2604.0,2603.7,3.84068]
[1723865009956,0.07893847,2603.8,2603.7,3.84068]
[1723865010258,1.0,2604.0,2603.8,3.84047]
[1723865010460,1.0,2604.0,2603.8,4.224538]
[1723865013405,0.07628397,2603.9,2603.8,4.224538]
[1723865014100,1.40428397,2603.9,2603.7,3.84068]
[1723865015036,0.07628397,2603.9,2603.7,3.84068]
[1723865016191,0.07628397,2603.9,2603.7,7.68128]
[1723865016392,0.07628397,2603.9,2603.7,7.6812]
[1723865016628,0.07628397,2603.9,2603.8,0.76812]
[1723865016931,0.07628397,2603.9,2603.7,3.8406]
[1723865018217,0.07628397,2603.9,2603.7,7.68121]
[1723865018414,0.07628397,2603.9,2603.7,3.8406]
[1723865020734,0.07628397,2603.9,2603.7,7.68119]
[1723865020941,0.07628397,2603.9,2603.7,3.84059]
[1723865021094,0.07628397,2603.9,2603.8,0.629109]
[1723865022635,0.07628397,2603.9,2603.7,3.84059]
[1723865023647,0.07628397,2603.9,2603.7,7.68119]
[1723865024044,0.07628397,2603.9,2603.7,3.84059]
[1723865024365,3.715,2603.8,2603.3,6.84117]
[1723865024669,3.715,2603.8,2603.4,3.0]
[1723865024880,0.07616754,2603.7,2603.4,3.0]
[1723865025187,3.715,2603.8,2603.4,3.0]
[1723865025477,3.715,2603.8,2603.4,6.84111]
[1723865025678,0.07616754,2603.7,2603.4,6.84111]
[1723865026033,3.715,2603.8,2603.4,6.84111]
[1723865026237,0.07611627,2603.6,2603.5,10.13244]
[1723865026432,1.0,2604.0,2603.6,3.84072]
[1723865026749,1.40404438,2603.9,2603.5,4.58940863]
[1723865027073,1.40404438,2603.9,2603.5,3.8409]
[1723865027762,1.40404438,2603.9,2603.5,7.6818]
[1723865028075,1.40404438,2603.9,2603.5,3.8409]
[1723865028271,1.40404438,2603.9,2603.6,3.84083]
[1723865028572,2.387,2603.8,2603.5,3.84088]
[1723865029082,0.07606005,2603.7,2603.5,3.84088]
[1723865029388,2.387,2603.8,2603.5,3.84088]
[1723865029547,0.07600877,2603.6,2603.5,3.84088]
[1723865029748,2.387,2603.8,2603.5,6.84088]
[1723865029970,0.07600877,2603.6,2603.5,3.84088]
[1723865030179,2.387,2603.8,2603.5,6.84088]
[1723865030491,0.07600877,2603.6,2603.5,3.84088]
[1723865030696,2.387,2603.8,2603.5,6.84088]
[1723865030991,2.387,2603.8,2603.5,3.84088]
[1723865031214,0.07606005,2603.7,2603.5,3.84088]
[1723865031357,2.387,2603.8,2603.4,6.84111]
[1723865031561,1.328,2603.5,2603.1,6.84148]
[1723865031905,1.328,2603.5,2603.2,3.84139]
[1723865032052,0.07612723,2603.4,2603.3,3.0]
[1723865032452,0.07612723,2603.4,2603.3,6.84127]
[1723865033190,3.715,2603.8,2603.3,6.84127]
[1723865033401,3.715,2603.8,2603.3,8.154588]
[1723865033564,3.715,2603.8,2603.3,6.84127]
[1723865033565,0.07626652,2603.7,2603.3,6.84127]
[1723865033784,3.715,2603.8,2603.3,6.84127]
[1723865033998,0.07621525,2603.6,2603.3,6.84127]
[1723865034199,0.07626652,2603.7,2603.3,6.84127]
[1723865034395,0.07616397,2603.5,2603.3,8.154588]
[1723865034607,3.715,2603.8,2603.3,6.84127]
[1723865034904,0.07611269,2603.4,2603.3,6.84127]
[1723865035060,3.715,2603.8,2603.3,6.84127]
[1723865035254,0.07611269,2603.4,2603.3,6.84127]
[1723865035455,3.715,2603.8,2603.3,6.84127]
[1723865035695,0.07611269,2603.4,2603.3,6.84127]
[1723865036010,0.07611269,2603.4,2603.3,8.154588]
[1723865036169,3.715,2603.8,2603.3,8.154588]
[1723865036375,0.07611269,2603.4,2603.3,6.84127]
[1723865036558,3.715,2603.8,2603.3,6.84127]
[1723865036762,0.07611269,2603.4,2603.3,6.84127]
[1723865037074,3.715,2603.8,2603.3,6.84127]
[1723865037397,3.715,2603.8,2603.4,1.313318]
[1723865037640,3.715,2603.8,2603.3,6.84127]
[1723865038120,3.715,2603.8,2603.4,3.8411]
[1723865041582,1.328,2603.8,2603.4,7.68215]
[1723865042393,1.328,2603.8,2603.4,3.84105]
[1723865042929,1.328,2603.8,2603.4,7.68209]
[1723865043611,0.07354039,2603.7,2603.4,7.68206]
[1723865044108,0.07348912,2603.6,2603.4,7.68206]
[1723865044517,0.07082603,2603.5,2603.4,3.84102]
[1723865044808,1.328,2603.8,2603.4,3.84102]
[1723865045004,0.07082603,2603.5,2603.4,3.84102]
[1723865045212,1.328,2603.8,2603.4,3.84102]
[1723865045410,0.07082603,2603.5,2603.4,3.84102]
[1723865045616,1.328,2603.8,2603.4,3.84102]
[1723865046029,0.07092857,2603.7,2603.4,3.84102]
[1723865046407,1.328,2603.8,2603.4,3.84102]
[1723865046611,0.0708773,2603.6,2603.4,3.84102]
[1723865046913,1.328,2603.8,2603.4,3.84102]
[1723865047439,0.07092857,2603.7,2603.4,3.84102]
[1723865047805,1.328,2603.8,2603.4,3.84102]
[1723865048018,0.0708773,2603.6,2603.4,3.84102]
[1723865048245,1.328,2603.8,2603.4,3.84102]
[1723865048539,0.07082603,2603.5,2603.4,3.84102]
[1723865049309,1.328,2603.8,2603.4,3.84102]
[1723865049542,0.07092857,2603.7,2603.4,3.84102]
[1723865049946,1.328,2603.6,2603.4,3.84102]
[1723865050137,1.3988773,2603.6,2603.4,3.84102]
[1723865050342,3.8497773,2603.6,2603.4,3.84102]
[1723865051102,1.3988773,2603.6,2603.4,3.84102]
[1723865054001,1.3988773,2603.6,2603.3,6.84126]
[1723865054355,1.3988773,2603.6,2603.3,10.68245]
[1723865054759,1.3988773,2603.6,2603.4,3.84112]
[1723865057818,1.3988773,2603.6,2603.3,10.68236]
[1723865058221,1.3988773,2603.6,2603.4,3.84112]
[1723865058421,1.3988773,2603.6,2603.5,3.84098]
[1723865064417,1.3988773,2603.6,2603.3,13.01205]
[1723865064725,1.3988773,2603.6,2603.3,13.01207]
[1723865065087,1.3988773,2603.6,2603.4,3.84112]
[1723865068309,0.0708773,2603.6,2603.4,3.84112]
[1723865069425,0.0708773,2603.6,2603.4,3.84099]
[1723865069625,0.0708773,2603.6,2603.5,1.301186]
[1723865070125,0.0708773,2603.6,2603.5,5.142166]
[1723865072341,0.0708773,2603.6,2603.5,3.84098]
[1723865072701,0.0708773,2603.6,2603.5,7.68196]
[1723865073040,1.328,2603.9,2603.7,3.84066]
[1723865074006,0.7,2604.2,2603.8,3.84039]
[1723865074324,1.328,2604.0,2603.9,3.84036]
[1723865075437,1.328,2604.2,2603.9,3.84036]
[1723865078240,1.328,2604.0,2603.9,3.84036]
[1723865078408,1.328,2604.0,2603.8,2.357]
[1723865078745,1.328,2604.0,2603.8,6.19752]
[1723865079339,1.328,2604.0,2603.7,7.68113]
[1723865079552,2.4534,2604.2,2603.7,7.68113]
[1723865080057,1.328,2603.8,2603.7,7.68113]
[1723865081342,1.328,2603.8,2603.7,8.684943]
[1723865081750,1.328,2603.8,2603.7,4.844363]
[1723865081963,1.328,2604.0,2603.8,3.84051]
[1723865086136,1.328,2604.0,2603.7,2.357]
[1723865086339,1.328,2604.0,2603.6,3.84069]
[1723865086569,1.328,2604.0,2603.6,5.192459]
[1723865086952,1.328,2603.8,2603.7,3.84068]
[1723865088495,1.39584401,2603.8,2603.7,3.84068]
[1723865088691,1.39584401,2603.8,2603.7,4.844517]
[1723865093981,1.39584401,2603.8,2603.5,2.357]
[1723865094196,1.328,2603.8,2603.5,9.19797]
[1723865095554,1.328,2603.8,2603.6,3.84081]
[1723865095773,3.84015,2604.1,2603.6,3.84081]
[1723865095996,1.328,2603.8,2603.6,3.84081]
[1723865097100,0.06783504,2603.7,2603.6,3.84081]
[1723865097396,1.328,2603.8,2603.6,3.84081]
[1723865097772,0.06783504,2603.7,2603.6,3.84081]
[1723865097973,1.328,2603.8,2603.6,3.84081]
[1723865098170,0.06782169,2603.7,2603.6,3.84081]
[1723865098375,1.328,2603.8,2603.6,3.84081]
[1723865098765,0.06780835,2603.7,2603.6,3.84081]
[1723865098972,1.328,2603.8,2603.6,3.84081]
[1723865099173,0.06788842,2603.7,2603.6,3.84081]
[1723865099486,1.328,2603.8,2603.6,3.84081]
[1723865099879,0.06787507,2603.7,2603.6,3.84081]
[1723865100086,1.328,2603.8,2603.6,3.84081]
[1723865100400,1.328,2603.8,2603.7,0.919781]
[1723865100615,1.39588631,2603.8,2603.6,3.84081]
[1723865100917,1.328,2603.8,2603.5,3.0]
[1723865101266,0.06782169,2603.7,2603.5,3.0]
[1723865101539,0.06782169,2603.7,2603.5,6.84097]
[1723865101818,0.06777042,2603.6,2603.5,6.84097]
[1723865101986,1.328,2603.8,2603.5,6.84097]
[1723865102182,0.06782169,2603.7,2603.5,6.84097]
[1723865102399,3.84063,2603.8,2603.2,3.84137]
[1723865102600,3.84063,2603.8,2603.3,3.0]
[1723865102601,1.328,2603.6,2603.3,3.0]
[1723865102808,0.06770892,2603.5,2603.3,3.0]
[1723865103410,0.06770892,2603.5,2603.3,6.84126]
[1723865105311,1.328,2603.6,2603.3,6.84126]
[1723865107610,0.06769699,2603.5,2603.3,6.84126]
[1723865108819,0.06769699,2603.5,2603.3,3.0]
[1723865110893,0.06769699,2603.5,2603.3,6.84127]
[1723865113826,0.06769699,2603.5,2603.4,10.13586]
[1723865114183,1.328,2603.8,2603.5,3.84088]
[1723865114583,0.06772455,2603.7,2603.5,3.84088]
[1723865114812,1.328,2603.8,2603.5,3.84088]
[1723865115200,0.06772455,2603.7,2603.5,3.84088]
[1723865115401,1.328,2603.8,2603.5,3.84088]
[1723865115790,0.06772455,2603.7,2603.5,3.84088]
[1723865116024,1.328,2603.8,2603.5,3.84088]
[1723865116210,0.06772455,2603.7,2603.5,3.84088]
[1723865116531,1.328,2603.8,2603.5,3.84088]
[1723865116715,0.06767327,2603.6,2603.5,3.84088]
[1723865116884,1.328,2603.8,2603.5,3.84088]
[1723865117088,0.06767327,2603.6,2603.5,3.84088]
[1723865117633,1.328,2603.8,2603.6,3.84083]
[1723865117936,0.06772455,2603.7,2603.6,3.84083]
[1723865118231,1.328,2603.8,2603.6,3.84083]
[1723865118580,0.06716455,2603.7,2603.6,3.84083]
[1723865118784,1.328,2603.8,2603.6,3.84083]
[1723865119027,0.06725484,2603.7,2603.4,7.68212]
[1723865119229,1.328,2603.8,2603.5,3.84094]
[1723865119427,6.33422,2604.1,2603.5,3.84094]
[1723865119428,1.328,2603.6,2603.5,3.84098]
[1723865119836,1.39533428,2603.6,2603.5,3.84098]
[1723865121482,1.328,2603.6,2603.5,3.84098]
[1723865121685,1.39533428,2603.6,2603.5,3.84098]
[1723865122482,1.328,2603.6,2603.5,3.84098]
[1723865122889,1.39537431,2603.6,2603.4,7.68204]
[1723865123090,1.39537431,2603.6,2603.4,3.84099]
[1723865126035,1.328,2603.6,2603.4,3.84099]
[1723865126190,0.06734648,2603.5,2603.4,7.68203]
[1723865126815,0.06734648,2603.5,2603.4,3.84099]
[1723865128129,0.06734648,2603.5,2603.4,5.15458]
[1723865128440,1.328,2603.7,2603.4,5.15458]
[1723865128650,0.06734621,2603.6,2603.4,3.84099]
[1723865129999,0.06734621,2603.6,2603.3,3.0]
[1723865130200,6.12631,2603.7,2603.3,3.0]
[1723865130420,0.06716428,2603.6,2603.3,3.0]
[1723865130644,6.12631,2603.7,2603.3,3.0]
[1723865130803,0.06716428,2603.6,2603.3,3.0]
[1723865131004,1.328,2603.5,2603.3,3.0]
[1723865131222,0.06706171,2603.4,2603.2,3.0]
[1723865131410,1.328,2603.3,2603.1,0.8051344]
[1723865131611,0.06698172,2603.2,2603.1,0.8051344]
[1723865131797,2.08017317,2603.3,2603.1,0.8051344]
[1723865132438,0.06696156,2603.2,2603.1,0.8051344]
[1723865132634,2.08017317,2603.3,2603.1,0.8051344]
[1723865132841,2.08017317,2603.3,2602.9,5.04948161]
[1723865132842,0.06696156,2603.2,2602.9,3.84178]
[1723865133049,1.328,2603.3,2602.9,3.84178]
[1723865133339,0.06696156,2603.2,2602.9,3.84178]
[1723865133845,0.06691026,2603.1,2602.9,3.84178]
[1723865134142,1.328,2603.3,2602.9,3.84178]
[1723865134324,0.06685896,2603.0,2602.9,3.84178]
[1723865134530,1.328,2603.3,2602.9,3.84178]
[1723865134731,0.06685896,2603.0,2602.9,3.84178]
[1723865134902,1.328,2603.3,2602.9,3.84178]
[1723865135104,0.06685896,2603.0,2602.9,3.84178]
[1723865135309,1.328,2603.3,2602.9,3.84178]
[1723865135514,0.06685896,2603.0,2602.9,3.84178]
[1723865135714,1.328,2603.3,2602.9,3.84178]
[1723865135913,0.06685896,2603.0,2602.9,3.84178]
[1723865136427,0.06685896,2603.0,2602.7,2.2639]
[1723865136622,1.328,2602.9,2602.5,14.2313844]
[1723865136826,0.06666608,2602.8,2602.5,14.2313844]
[1723865137057,1.328,2602.9,2602.5,11.9674844]